Cogmind - Beta 14 @@@ ROGUE MODE // 2024.08.17 @ 06:59:26 Player: Lillith Result: Self-destructed Performance ------------- Evolutions (2) 1000 Regions Visited (6) 1200 Robots Destroyed (103) 515 Value Destroyed (3453) 3453 Prototype IDs (2) 40 Alien Tech Used (0) 0 Bonus (413) 413 TOTAL SCORE: 6621 Bonus ------- High Alert Combat Kills 247 Follower Combat Kills 122 Entered Garrisons 200 Friendly Fire -156 Cogmind --------- Core Integrity 4/550 Matter 26/300 Energy 143/160 System Corruption 3% Temperature Critical (850) Movement Core (750) Ox14 Location -8/Garrison Parts ------- > --- POWER (1) -------- Light Nuclear Core > --- PROPULSION (4) --- (None) > --- UTILITY (4) ------ Large Storage Unit > --- WEAPON (2) ------- Enhanced Gauss Cannon Enhanced Gauss Cannon > --- INVENTORY (15) --- Light Treads Light Treads Light Treads Wheel Improved Heat Sink Compact Matter Pod (150) Seismic Detector Improved Shield Generator Authchip [R/NC] Authchip [R/Combat] Authchip [R/Combat] Gatling Laser Missile Launcher Axe Peak State ------------ > --- POWER ------------ Light Angular Momentum Engine > --- PROPULSION ------- Light Treads Light Treads Improved Treads Improved Treads > --- UTILITY ---------- Improved Heat Sink Large Storage Unit Hardened Medium Armor Plating Hacking Suite > --- WEAPON ----------- Heavy Particle Cannon Advanced EMP Blaster > --- INVENTORY -------- Light Deuterium Engine Wheel Compact Matter Pod Seismic Detector Hardened Light Armor Plating Hardened Medium Armor Plating Hardened Medium Armor Plating Hardened Heavy Armor Plating Heavy Particle Cannon Heavy Assault Rifle Heavy Assault Rifle Improved Light Cannon Grenade Launcher Axe [Rating: 31] Favorites ----------- Power Light Nuclear Core Engine Ion Engine Power Core Light Nuclear Core Propulsion Wheel Treads Light Treads Leg Aluminum Leg Wheel Wheel Hover Unit Gravmag System Utility Large Storage Unit Device Seismic Detector Storage Large Storage Unit Processor Improved Targeting Computer Hackware Hacking Suite Protection Hardened Medium Armor Plating Weapon Heavy Assault Rifle Energy Gun Improved Medium Laser Energy Cannon Heavy Particle Cannon Ballistic Gun Heavy Assault Rifle Ballistic Cannon Improved Light Cannon Launcher Missile Launcher Slashing Weapon Axe Build | -11 -10 -10 -9 -9 -8 -8 ------- Run | Yrd Mat Min Mat Min Mat Gar Slots Evolved 4 | . . . 2 . 2 . Power . | . . . . . . . Propulsion 2 | . . . 1 . 1 . Utility 2 | . . . 1 . 1 . Weapon . | . . . . . . . Parts Attached 115 | 7 21 2 26 5 24 30 Power 11 | 1 3 . 2 1 2 2 Engine 8 | 1 3 . 2 1 1 . Core 3 | . . . . . 1 2 Reactor . | . . . . . . . Propulsion 36 | 2 9 2 7 1 7 8 Treads 18 | . 2 1 4 1 7 3 Leg 6 | 2 1 . . . . 3 Wheel 10 | . 6 1 3 . . . Hover 2 | . . . . . . 2 Flight . | . . . . . . . Utility 23 | 2 2 . 8 . 5 6 Device 5 | 1 1 . . . 2 1 Storage 3 | 1 1 . 1 . . . Processor 2 | . . . 1 . 1 . Hackware 2 | . . . . . 2 . Protection 11 | . . . 6 . . 5 Artifact . | . . . . . . . Weapon 45 | 2 7 . 9 3 10 14 Energy Gun 8 | 1 2 . 4 . . 1 Energy Cannon 6 | . . . 2 . 4 . Ballistic Gun 17 | 1 5 . 2 1 3 5 Ballistic Cannon 3 | . . . . 1 . 2 Launcher 9 | . . . 1 1 1 6 Special Weapon . | . . . . . . . Impact Weapon . | . . . . . . . Slashing Weapon 2 | . . . . . 2 . Piercing Weapon . | . . . . . . . Special Melee Weapon . | . . . . . . . Unidentified Prototypes 2 | . . . 1 . 1 . Parts Lost 20 | . . 1 3 . 2 14 Power 3 | . . . 1 . 1 1 Propulsion 10 | . . 1 . . 1 8 Utility 6 | . . . 1 . . 5 Weapon 1 | . . . 1 . . . Highest Loss Streak 7 | . . 1 2 . 1 7 To Critical Strikes . | . . . . . . . Average Slot Usage (%) 95 | . 98 100 99 100 99 81 Engine 8 | . 13 14 11 11 4 . Core 2 | . . . . . 4 7 Treads 15 | . . . 15 22 34 11 Leg 4 | . 7 . . . . 15 Wheel 10 | . 20 28 17 11 . . Device 4 | . 13 14 2 . 2 1 Storage 10 | . 14 14 11 11 9 9 Processor 4 | . . . 8 11 6 . Hackware 2 | . . . . . 15 . Protection 7 | . . . 10 11 2 17 Energy Gun 7 | . 6 . 16 11 . 7 Energy Cannon 1 | . . . 1 . 6 . Ballistic Gun 11 | . 21 28 3 6 10 7 Peak Build Rating 31 | 7 8 8 21 24 31 31 Average Rating 19 | 5 7 7 15 23 27 27 On Entrance 13 | . 7 8 8 21 24 28 Naked Turns . | . . . . . . . Heaviest Build 95 | 15 90 88 95 44 50 60 Greatest Support 86 | 20 32 20 43 46 86 86 Greatest Overweight (x) 5 | 3 5 4 3 1 . 5 Average Overweight (x) 1 | . 2 4 . . . 1 Largest Inventory Capacity 25 | 8 25 25 25 15 15 15 Average Capacity 17 | 7 20 25 18 15 15 15 Most Carried 15 | 7 13 12 15 15 15 15 Average Carried 13 | 4 9 11 13 14 14 14 Final Capacity 25 | 8 25 25 15 15 15 15 Final Carried 15 | 6 12 11 15 15 15 14 Class Distribution -------------------- 71% | Mutant 28% | Scavenger-Mutant Dominant Class ---------------- Mutant | -10/Materials Mutant | -10/Mines Mutant | -9/Materials Mutant | -9/Mines Scavenger-Mutant | -8/Materials Scavenger-Mutant | -8/Garrison Resources | -11 -10 -10 -9 -9 -8 -8 ----------- Run | Yrd Mat Min Mat Min Mat Gar Matter Collected 2561 | 291 336 245 561 194 365 569 Remotely . | . . . . . . . Salvage Created 3519 | 77 513 82 1196 196 635 820 Parts 232 | 5 37 4 79 25 32 50 Haulers Intercepted 4 | . 2 . 1 . 1 . Recyclers Shooed 1 | . . . 1 . . . Parts Field Recycled . | . . . . . . . Retrieved Matter . | . . . . . . . Parts Self-Destructed . | . . . . . . . Prevented . | . . . . . . . Kills | -11 -10 -10 -9 -9 -8 -8 ------- Run | Yrd Mat Min Mat Min Mat Gar Combat Hostiles Destroyed 82 | . 13 2 23 12 10 22 Guns 62 | . 13 2 21 8 5 13 Cannons 6 | . . . . 1 5 . AOE 14 | . . . 2 3 . 9 Classes Destroyed 15 | 2 4 . 3 3 1 2 Worker 4 | . . . 1 3 . . Builder 2 | . . . . 1 1 . Tunneler 2 | 1 . . 1 . . . Hauler 4 | . 2 . 1 . 1 . Recycler 3 | 1 1 . 1 . . . Mechanic 1 | . . . . . 1 . Operator 2 | . . . 2 . . . Watcher 4 | . 1 . 2 . . 1 Swarmer 18 | . 8 . 2 8 . . Grunt 42 | . 5 2 17 . 7 11 Duelist 1 | . . . . . . 1 Sentry 15 | . . . 5 . 3 7 Demolisher 2 | . . . . 2 . . Programmer 3 | . . . . . . 3 Assembled 2 | . . . . 2 . . Best Kill Streak 5 | 2 5 2 4 4 2 3 Combat Bots Only 5 | . 5 2 4 4 1 3 Max Kills in Single Turn 3 | 1 1 1 2 3 1 2 Gunslinging 1 | . . . 1 . . . Exploded 2 | . . . 1 1 . 2 Melee . | . . . . . . . Uniques/NPCs Destroyed . | . . . . . . . Combat | -11 -10 -10 -9 -9 -8 -8 -------- Run | Yrd Mat Min Mat Min Mat Gar Hostile Shots Fired 417 | . 69 14 86 22 76 150 Missed 87 | . 25 3 18 4 12 25 Damage Taken 5332 | . 447 169 901 270 1040 2505 Core 916 | . 126 61 120 63 151 395 Absorbed by Shields . | . . . . . . . Redirected to Shielding 107 | . . . . . . 107 Core Remaining (%) 59 | 100 . 25 . 54 . . Volleys Fired 285 | 7 53 13 76 24 43 69 Largest 2 | 2 2 2 2 2 2 2 Hottest 150 | 70 70 40 112 95 150 116 Shots Fired 530 | 14 106 26 144 48 83 109 Gun 438 | 14 106 26 137 36 49 70 Cannon 57 | . . . 2 2 34 19 Launcher 35 | . . . 5 10 . 20 Special . | . . . . . . . Kinetic 272 | 7 75 26 44 14 46 60 Thermal 221 | 7 31 . 93 24 37 29 Explosive 35 | . . . 5 10 . 20 Electromagnetic 2 | . . . 2 . . . Robot Hit Streak 27 | 5 9 8 27 6 11 14 Robot Miss Streak 4 | 3 3 4 3 2 3 4 Penetration Max . | . . . . . . . Secondary Targets 6 | . 1 . 4 . . 1 Max Gunslinging Chain 1 | . 1 . 1 . . 1 Shots Hit Robots 346 | 8 66 17 102 17 62 74 Core Hits 182 | 3 28 4 42 24 25 56 Critical Kills . | . . . . . . . Critical Parts Destroyed . | . . . . . . . Critical Strikes 9 | . 1 . 8 . . . Burn 9 | . 1 . 8 . . . Melee Attacks 3 | . . . . . 3 . Impact . | . . . . . . . Slashing 3 | . . . . . 3 . Piercing . | . . . . . . . Sneak Attacks 3 | . . . . . 3 . Combat Hostiles . | . . . . . . . Follow-up Attacks . | . . . . . . . Damage Inflicted 7678 | 102 853 205 2034 641 1352 2491 Guns 4858 | 102 837 205 1722 336 577 1079 Cannons 1146 | . . . 41 40 560 505 Explosions 1437 | . . . 265 265 . 907 Melee 215 | . . . . . 215 . Ramming 22 | . 16 . 6 . . . Kinetic 2962 | 40 604 205 460 172 543 938 Thermal 3001 | 62 233 . 1262 204 594 646 Explosive 1437 | . . . 265 265 . 907 Electromagnetic 41 | . . . 41 . . . Impact . | . . . . . . . Slashing 215 | . . . . . 215 . Piercing . | . . . . . . . Highest Corruption 3 | . . . . . 2 3 Average Corruption 2 | . . . . . 1 2 Corruption Purged . | . . . . . . . Corruption Blocked . | . . . . . . . Effects 32 | . . . . . 4 28 Message Errors 12 | . . . . . . 12 Matter Fused 5 | . . . . . 1 4 Heat Flow Errors 3 | . . . . . . 3 Energy Discharges 2 | . . . . . . 2 Parts Fused 1 | . . . . . . 1 Data Loss (minor) 4 | . . . . . 2 2 Data Loss (major) 2 | . . . . . . 2 Misfires 3 | . . . . . 1 2 Overload Shots . | . . . . . . . Overflow Damage 38 | . . . . 14 22 2 Projectiles . | . . . . . . . Explosions 16 | . . . . 14 . 2 Melee 22 | . . . . . 22 . Knockbacks 1 | . . . . 1 . . Impact . | . . . . . . . Kinetic 1 | . . . . 1 . . Secondary . | . . . . . . . Self-Inflicted Damage 46 | . 8 . 10 8 . 20 Shots 3 | . . . 1 1 . 1 Rammed 3 | . 2 . 1 . . . Targets Rammed 3 | . 2 . 1 . . . Kicked . | . . . . . . . Crushed . | . . . . . . . Highest Temperature 612 | 36 90 2 282 144 430 612 Average Temperature 111 | 15 29 2 95 45 127 180 Received Heat Transfer 2704 | . 180 99 423 . 648 1354 Effects 26 | . . . 3 . 2 21 Shutdowns 4 | . . . . . 1 3 Energy Bleed 7 | . . . 3 . 1 3 Interference 3 | . . . . . . 3 Matter Decay 3 | . . . . . . 3 Short Circuit 1 | . . . . . . 1 Damage (minor) 3 | . . . . . . 3 Damage (major) 3 | . . . . . . 3 Damage (core) 2 | . . . . . . 2 Siege Activations . | . . . . . . . Robots Corrupted . | . . . . . . . Combat Hostiles . | . . . . . . . Parts Fried . | . . . . . . . Impact Corruptions . | . . . . . . . Robots Melted . | . . . . . . . Combat Hostiles . | . . . . . . . Parts Melted 11 | . . . 9 . 1 1 Heat Transferred 6668 | 185 729 . 3219 444 888 1203 Parts Sabotaged . | . . . . . . . Parts Stolen . | . . . . . . . Parts Stripped . | . . . . . . . Power Chain Reactions . | . . . . . . . Alert | -11 -10 -10 -9 -9 -8 -8 ------- Run | Yrd Mat Min Mat Min Mat Gar Peak Influence 957 | 10 257 122 486 264 154 957 Initial 157 | . 6 61 . 157 12 43 Average 201 | 2 97 47 316 103 49 495 Maximum Alert Level 3 | . 1 . 2 1 . 3 Low Security (%) 65 | 100 90 100 10 97 100 10 Level 1 19 | . 9 . 70 2 . 28 Level 2 10 | . . . 19 . . 33 Level 3 5 | . . . . . . 27 Level 4 . | . . . . . . . Level 5 . | . . . . . . . High Security . | . . . . . . . Max Security . | . . . . . . . Squads Dispatched 12 | . 2 . 6 . 4 . Investigation 5 | . 2 . 2 . 1 . Extermination . | . . . . . . . Reinforcement 5 | . . . 3 . 2 . Assault 1 | . . . 1 . . . Garrison 1 | . . . . . 1 . Intercept . | . . . . . . . Searches Triggered . | . . . . . . . Construction Impeded . | . . . . . . . Haulers Reinforced . | . . . . . . . Active Scanning Responses . | . . . . . . . Cargo Convoy Interrupts . | . . . . . . . Stealth | -11 -10 -10 -9 -9 -8 -8 --------- Run | Yrd Mat Min Mat Min Mat Gar Distress Signals 9 | . . . 5 . 2 2 Communications Jammed . | . . . . . . . Distress Signals . | . . . . . . . Times Spotted 135 | . 24 2 38 22 20 29 Peak Tracking Total 13 | . 4 2 5 13 3 5 Tactical Retreats 11 | . 2 1 1 1 2 4 Traps | -11 -10 -10 -9 -9 -8 -8 ------- Run | Yrd Mat Min Mat Min Mat Gar Traps Triggered 19 | . 7 . 1 2 2 7 Indirectly . | . . . . . . . Trap Hack Attempts . | . . . . . . . Triggered . | . . . . . . . Disarmed . | . . . . . . . Reprogrammed . | . . . . . . . Reused . | . . . . . . . Traps Extracted . | . . . . . . . Installed . | . . . . . . . Triggered . | . . . . . . . Machines | -11 -10 -10 -9 -9 -8 -8 ---------- Run | Yrd Mat Min Mat Min Mat Gar Machines Disabled 3 | . . . . . . 3 Max in Single Turn 1 | . . . . . . 1 Garrison Relay 2 | . . . . . . 2 Machines Repaired . | . . . . . . . Machines Dismantled . | . . . . . . . Machines Sabotaged . | . . . . . . . Overloaded Fab Kills . | . . . . . . . Hacking | -11 -10 -10 -9 -9 -8 -8 --------- Run | Yrd Mat Min Mat Min Mat Gar Machines Accessed 27 | . 9 1 6 1 9 1 Terminals 21 | . 7 1 5 . 7 1 Fabricators . | . . . . . . . Repair Stations . | . . . . . . . Recycling Units 3 | . 2 . 1 . . . Scanalyzers 1 | . . . . . 1 . Garrison Access 1 | . . . . . 1 . Total Hacks 68 | . 19 2 12 1 33 1 Successful 36 | . 10 1 6 1 17 1 Failed 30 | . 8 . 6 . 16 . Catastrophic 4 | . 1 . . . 3 . Database Lockouts 2 | . 1 1 . . . . Manual 44 | . 15 3 11 . 15 . Terminals 54 | . 15 2 11 . 25 1 Fabricators . | . . . . . . . Repair Stations . | . . . . . . . Recycling Units 5 | . 4 . 1 . . . Scanalyzers 7 | . . . . . 7 . Garrison Access 1 | . . . . . 1 . Terminal Hacks 12 | . 3 1 1 1 5 1 Part Schematic 1 | . . . . . 1 . Robot Analysis 5 | . 3 1 1 . . . Open Door 1 | . . . . 1 . . Emergency Access Points 1 | . . . . . . 1 Unreport Threat 2 | . . . . . 2 . Recall Investigation 1 | . . . . . 1 . Registered Components 1 | . . . . . 1 . Fabricator Hacks . | . . . . . . . Repair Station Hacks . | . . . . . . . Recycling Unit Hacks 3 | . 2 . 1 . . . Retrieve Components 3 | . 2 . 1 . . . Scanalyzer 6 | . . . . . 6 . Insert Component 3 | . . . . . 3 . Analyze 3 | . . . . . 3 . Garrison Access Hacks 1 | . . . . . 1 . Unlock Access 1 | . . . . . 1 . Unauthorized Hacks 14 | . 5 . 4 . 5 . Terminals 14 | . 5 . 4 . 5 . Skim 14 | . 5 . 4 . 5 . Fabricators . | . . . . . . . Repair Stations . | . . . . . . . Recycling Units . | . . . . . . . Scanalyzers . | . . . . . . . Garrison Access . | . . . . . . . Data Cores Recovered . | . . . . . . . Used . | . . . . . . . Hacking Detections 22 | . 9 . 5 . 8 . Full Trace Events 1 | . . . . . 1 . Feedback Events . | . . . . . . . Feedback Blocked . | . . . . . . . Robot Schematics Acquired . | . . . . . . . Robots Built . | . . . . . . . Authchips . | . . . . . . . Time . | . . . . . . . Total Robot Build Rating . | . . . . . . . Part Schematics Acquired 4 | . . . . . 4 . Parts Built . | . . . . . . . Authchips . | . . . . . . . Time . | . . . . . . . Total Part Build Rating . | . . . . . . . Parts Repaired . | . . . . . . . Time . | . . . . . . . Parts Recycled . | . . . . . . . Recycled Matter . | . . . . . . . Retrieved Matter . | . . . . . . . Retrieved Components 11 | . 1 . 10 . . . Parts Scanalyzed 3 | . . . . . 3 . Part Schematics Acquired 3 | . . . . . 3 . Parts Damaged . | . . . . . . . Bothacking | -11 -10 -10 -9 -9 -8 -8 ------------ Run | Yrd Mat Min Mat Min Mat Gar Used RIF Installer . | . . . . . . . Robots Hacked . | . . . . . . . Non-combat . | . . . . . . . Combat . | . . . . . . . Robot Hacks Applied . | . . . . . . . Relay Couplers Released 7 | . . . . . . 7 Machine Destruction 7 | . . . . . . 7 Fabnet Peak Effective % . | . . . . . . . Robots Rewired . | . . . . . . . Allies Hacked . | . . . . . . . Hacks Repelled . | . . . . . . . Allies | -11 -10 -10 -9 -9 -8 -8 -------- Run | Yrd Mat Min Mat Min Mat Gar Total Allies 3 | . . 3 . . . . Largest Group 3 | . . 3 3 . . . Highest-Rated Group 40 | . . 40 40 . . . Highest-Rated Ally 16 | . . 16 16 . . . Total Orders . | . . . . . . . Ally Attacks 33 | . . . 33 . . . Total Damage 347 | . . . 347 . . . Kills 7 | . . . 7 . . . Allies Corrupted . | . . . . . . . Allies Melted . | . . . . . . . Intel | -11 -10 -10 -9 -9 -8 -8 ------- Run | Yrd Mat Min Mat Min Mat Gar Robot Analysis Total 5 | . 3 1 1 . . . Derelict Logs Recovered 3 | . . 2 . 1 . . Drone Launches . | . . . . . . . Drone Recoveries . | . . . . . . . Exploration | -11 -10 -10 -9 -9 -8 -8 ------------- Run | Yrd Mat Min Mat Min Mat Gar Turns Passed 7810 | 99 1191 780 1230 1446 1417 1647 Spaces Moved 4094 | 54 732 528 604 791 733 652 Core 8 | 8 . . . . . . Treads 2143 | . . . 414 791 733 205 Legs 665 | 46 215 . . . . 404 Wheels 1235 | . 517 528 190 . . . Hover 43 | . . . . . . 43 Flight . | . . . . . . . Fastest Speed 50 | 50 120 140 125 160 160 160 Average Speed 159 | 115 131 140 148 172 160 204 Slowest Speed 470 | 200 175 140 160 240 160 470 Overloaded Moves . | . . . . . . . Propulsion Burnouts . | . . . . . . . Robots Hopped . | . . . . . . . Cave-ins Triggered . | . . . . . . . Exploration Rate (%) 67 | 4 98 94 55 98 49 73 Regions Visited 6 Branch Regions 2 Pre-discovered Areas 4 | . 1 2 . . 1 . Known Exits Taken 3 | . 1 1 . . 1 . Unknown Exits Taken 3 | 1 . . 1 1 . . Scrap Searched 4 | . . 2 . 2 . . Spaces Dug . | . . . . . . . Terrain Destroyed 186 | . . . 19 33 11 123 Melee . | . . . . . . . Projectile 11 | . . . . . 11 . AOE 175 | . . . 19 33 . 123 Terrain Rammed . | . . . . . . . Walls Destroyed . | . . . . . . . Machines Disabled . | . . . . . . . Actions | -11 -10 -10 -9 -9 -8 -8 --------- Run | Yrd Mat Min Mat Min Mat Gar Total 4834 | 74 849 542 801 829 894 845 Wait 153 | . 18 . 44 . 67 24 Move 4088 | 53 731 527 603 790 732 652 Hop . | . . . . . . . Pick Up 61 | 7 12 . 22 3 7 10 Fast Attach 31 | 6 9 . 3 . 4 9 Attach 25 | 1 2 1 7 1 7 6 Detach 17 | . 1 . 4 1 6 5 Swap 59 | . 10 1 16 4 13 15 Drop 66 | . 11 . 25 6 12 12 Fire 285 | 7 53 13 76 24 43 69 Melee 3 | . . . . . 3 . Ram 2 | . 2 . . . . . Kick . | . . . . . . . Crush 1 | . . . 1 . . . Escape Stasis 40 | . . . . . . 40 Rewire 3 | . . . . . . 3 Trap . | . . . . . . . Miscellaneous . | . . . . . . . Route ------- -11/Scrapyard -10/Materials (discovered 4 exits: *Mat x3 / *Min) -10/Mines (discovered 2 exits: *Mat x2) -9/Materials -9/Mines (discovered 2 exits: *Mat x2) -8/Materials (discovered 3 exits: [*Fac] / *Sto / Gar) -8/Garrison (discovered 2 exits: [*Mat x2]) History --------- Turn | Location | Event 6 | -11/Scrapyard | Discovered new exit (range 16) 100 | -11/Scrapyard | Entered Materials 300 | -10/Materials | Build established: Mutant 417 | -10/Materials | Discovered new exit (range 10) 747 | -10/Materials | Discovered new exit (range 5) 963 | -10/Materials | Learned 4 Recycling zone layouts 1015 | -10/Materials | Central database locked down 1018 | -10/Materials | Discovered new exit (range 14) 1024 | -10/Materials | Identified exit to Materials 1024 | -10/Materials | Identified exit to Mines 1077 | -10/Materials | Learned 2 Materials zone layouts 1121 | -10/Materials | Learned Storage interactive machine intel 1136 | -10/Materials | Core integrity fell below 50% 1156 | -10/Materials | Learned Storage garrison access intel 1183 | -10/Materials | Learned 2 Storage zone layouts 1271 | -10/Materials | Learned location of Mines (-9) 1291 | -10/Materials | Entered Mines 1297 | -10/Mines | Met a Derelict bent on vengeance 1403 | -10/Mines | Central database locked down 1437 | -10/Mines | Discovered exit to Materials (range 14) 1648 | -10/Mines | Learned location of Recycling (-8) 2036 | -10/Mines | Discovered exit to Materials (range 5) 2055 | -10/Mines | Assisted by bots powering up and referring to "LRC-V3" 2071 | -10/Mines | Entered Materials 2071 | -9/Materials | Accompanied by 3 allies 2071 | -9/Materials | Evolved 2 slots: Propulsion x1, Utility x1 3106 | -9/Materials | Discovered new exit (range 13) 3271 | -9/Materials | First assault squad dispatched 3301 | -9/Materials | Entered Mines 3314 | -9/Mines | Met a Derelict who couldn't figure out how to use a Trap Extractor 3461 | -9/Mines | Deemed a non-threat by the Exiles lab entrance 3633 | -9/Mines | Assembled infested the area 3638 | -9/Mines | Assisted by a Guerilla fighting off Assembled 4246 | -9/Mines | Discovered new exit (range 10) 4411 | -9/Mines | Discovered new exit (range 8) 4475 | -9/Mines | Found a hidden stash of uninstalled traps 4747 | -9/Mines | Entered Materials 4747 | -8/Materials | Evolved 2 slots: Propulsion x1, Utility x1 4748 | -8/Materials | Identified exit to Storage 5196 | -8/Materials | Build established: Scavenger-Mutant 5466 | -8/Materials | Met 7R-MNS 5688 | -8/Materials | Discovered new exit (range 4) 5720 | -8/Materials | Learned 2 Storage zone layouts 5754 | -8/Materials | Learned 4 Factory zone layouts 5794 | -8/Materials | Learned location of 1 exit from Recycling 5807 | -8/Materials | Learned location of Zion (-6) 5829 | -8/Materials | Identified exit to Garrison 6149 | -8/Materials | Garrison activated, responded to threat 6164 | -8/Materials | Entered Garrison 6340 | -8/Garrison | Triggered checkpoint 6478 | -8/Garrison | Build established: Mutant 6494 | -8/Garrison | Discovered new exit (range 13) 6784 | -8/Garrison | Triggered checkpoint 7136 | -8/Garrison | Build established: Scavenger-Mutant 7177 | -8/Garrison | Discovered new exit (range 13) 7326 | -8/Garrison | Triggered checkpoint 7572 | -8/Garrison | Triggered checkpoint 7644 | -8/Garrison | Triggered checkpoint 7768 | -8/Garrison | Spotted B-75 Beast 7790 | -8/Garrison | Core integrity fell below 50% 7810 | -8/Garrison | Core integrity fell below 20% 7811 | -8/Garrison | Self-destructed Last Messages --------------- 07802_ Slug penetrates B-75 Beast. 07803_ Overheating: System interference. 07803_ Imp. Heat Sink temporarily disabled. 07804_ Hrd. Medium Armor Plating destroyed. 07805_ Overheating: System interference. 07805_ Enh. Gauss Cannon temporarily disabled. 07807_ Overheating: System interference. 07807_ Enh. Gauss Cannon temporarily disabled. 07807_ Aluminum Leg destroyed. 07807_ Knocked back. 07807_ Hrd. Medium Armor Plating destroyed. 07808_ Power failure, Lgt. Nuclear Core shutdown. 07808_ Overheating: Energy bleed (-32). 07808_ Acquired 6 matter. 07809_ Overheating: Lgt. Treads damaged (-14). 07810_ Overheating: Core damaged (-104). 07811_ Lgt. Treads destroyed. 07811_ Imp. Heat Sink destroyed. 07811_ Critical hit (Meltdown: +330). Map ----- +----------------------------------------------------+ | ?????????????????????????????? | | ?????????????????????????????? | | ?????????????????????????????? | | ?????????????????????????????? | | ?????????????????????????????? | | ?????????????????????????????? | | ?????????????????????????????? | | ?????????????????????????????? | | ?????????????????????????????? | | ?????????????????????????????? | | ?????????????????????????????? | | ?????????????????????????????? | | ?????????????????????????????? | | ?????????????????????????????? | | ?????????????????????????????? | | ???###########???????????????? | | ??#"""""" """#???????????????? | | ??#"""=!![=^"###?????????????? | | ??#"" ! #####?????????? | | ??#"! +;++ # ##????????? | | ??#"! + %+ # ########## | | ??#"! ;BB+ | | ??#"! %BB; ! [ | | ??#""% ^%% [[ # ##!!!##### | | ??#""%![|[ !"#####" ""#??# | | ??#""@ %%""""#???#######??##+# | | ??############???????????????? | | ?????????????????????????????? | | ?????????????????????????????? | | ?????????????????????????????? | | ?????????????????????????????? | | ?????????????????????????????? | | ?????????????????????????????? | | ?????????????????????????????? | | ?????????????????????????????? | | ?????????????????????????????? | | ?????????????????????????????? | | ?????????????????????????????? | | ?????????????????????????????? | | ?????????????????????????????? | | ?????????????????????????????? | | ?????????????????????????????? | | ?????????????????????????????? | | ?????????????????????????????? | | ?????????????????????????????? | | ?????????????????????????????? | | ??????????????????????######## | | ??????????????????????#[ * | | ????????????????????### ###### | | ????????????????????# [=#????? | +----------------------------------------------------+ Best States ------------- Heat Dissipation 45 Energy Generation 18 Energy Capacity 250 Matter Stores 300 Matter Capacity 300 Sight Range 16 Terrain Scan Density 10 Armor Coverage 825 Weapon Shielding 66 Evasion (%) 55 Targeting Accuracy 6 Recoil Reduction 4 Offensive Hacking 10 Defensive Hacking 10 Authchip Count 3 Item Schematics ----------------- Gauss Cannon | -8/Materials | Scanalyzed Imp. Treads | -8/Materials | Scanalyzed Hrd. Heavy Armor Plating | -8/Materials | Scanalyzed Arm. Treads | -8/Materials | Hacked Robot Schematics ------------------ None Fabricated ------------ Nothing Alien Tech Used ----------------- None Achievements -------------- Slippery One Challenges ------------ None Game ------ Seed ClaymoresSystemInterrupter Manual? 0 Play Time 00:57:01 Cumulative 27.5 hours Start 2024.08.17 @ 06:03:10 End 2024.08.17 @ 06:59:26 Sessions 1 Manual Loads 0 Difficulty Rogue Special Mode None Game No. 48 Rogue 48 Adventurer 0 Explorer 0 Win Type - Total 0 Types 0/0/0/0/0/0/0/0/0 Lore% 32 Gallery% 26 Achievement% 23 Wizard Run 0 Options --------- Layout 2 ASCII 0 Keyboard 1 Movement Arrows Keybinds 0 Fullscreen 2 Font 32/SmallcapsGlow Map View 50x44 Zoom Use 0% Tactical HUD 1 Map Filters NONE Filters NONE Steam 1 RUN: 51c6e5cd-aea1-4606-a308-6774ca267ea5